[Event "*** Titled Tuesday Blitz"]
[Site "Chess.com"]
[Date "2020.04.28"]
[Round "7"]
[White "hedgehog280"]
[Black "Alohamora11"]
[Result "1/2-1/2"]
[WhiteElo "2685"]
[BlackElo "2529"]
[TimeControl "180+1"]
[EndTime "11:20:02 PDT"]
[Termination "Game drawn - insufficient material"]

1. c4 {[%clk 0:03:00.9]} 1... c5 {[%clk 0:02:58.9]} 2. Nf3 {[%clk 0:02:59.4]}
2... g6 {[%clk 0:02:59.2]} 3. d4 {[%clk 0:02:57.1]} 3... Bg7 {[%clk 0:02:58.5]}
4. e4 {[%clk 0:02:56.2]} 4... cxd4 {[%clk 0:02:57.4]} 5. Nxd4 {[%clk 0:02:56.3]}
5... Nc6 {[%clk 0:02:58.1]} 6. Be3 {[%clk 0:02:56.3]} 6... Nf6 {[%clk
0:02:58.3]} 7. Nc3 {[%clk 0:02:55.8]} 7... O-O {[%clk 0:02:58.8]} 8. Be2 {[%clk
0:02:49.4]} 8... d6 {[%clk 0:02:58.8]} 9. O-O {[%clk 0:02:50]} 9... Bd7 {[%clk
0:02:58.6]} 10. h3 {[%clk 0:02:50.6]} 10... Nxd4 {[%clk 0:02:58]} 11. Bxd4
{[%clk 0:02:50.1]} 11... Bc6 {[%clk 0:02:58.5]} 12. Qc2 {[%clk 0:02:50.5]} 12...
a5 {[%clk 0:02:58.3]} 13. Rad1 {[%clk 0:02:40]} 13... Nd7 {[%clk 0:02:47.4]} 14.
Bxg7 {[%clk 0:02:40.4]} 14... Kxg7 {[%clk 0:02:48.3]} 15. Bg4 {[%clk 0:02:41.1]}
15... Ne5 {[%clk 0:02:42.1]} 16. c5 {[%clk 0:02:38.4]} 16... Nxg4 {[%clk
0:02:04]} 17. hxg4 {[%clk 0:02:39.3]} 17... Qc8 {[%clk 0:02:04.4]} 18. cxd6
{[%clk 0:02:32.7]} 18... Qxg4 {[%clk 0:02:04.9]} 19. dxe7 {[%clk 0:02:20.8]}
19... Rfe8 {[%clk 0:02:05]} 20. f3 {[%clk 0:02:21.4]} 20... Qe6 {[%clk 0:01:57]}
21. Nd5 {[%clk 0:02:18]} 21... Bxd5 {[%clk 0:01:54.9]} 22. Rxd5 {[%clk
0:02:18.2]} 22... Rxe7 {[%clk 0:01:49.6]} 23. Rfd1 {[%clk 0:02:17.6]} 23... Qb6+
{[%clk 0:01:41]} 24. Qf2 {[%clk 0:02:11.9]} 24... Ra6 {[%clk 0:01:31.6]} 25.
R1d4 {[%clk 0:02:08.8]} 25... Qa7 {[%clk 0:01:21.1]} 26. Kh2 {[%clk 0:02:02.6]}
26... Rc7 {[%clk 0:01:10]} 27. Qg3 {[%clk 0:02:01.9]} 27... Re7 {[%clk
0:00:43.8]} 28. Rd8 {[%clk 0:01:55.4]} 28... Qb6 {[%clk 0:00:35.8]} 29. b3
{[%clk 0:01:38.6]} 29... a4 {[%clk 0:00:34]} 30. b4 {[%clk 0:01:24.6]} 30... a3
{[%clk 0:00:32]} 31. Kh1 {[%clk 0:01:05.8]} 31... Qc7 {[%clk 0:00:29.2]} 32. f4
{[%clk 0:01:01]} 32... Rxe4 {[%clk 0:00:23]} 33. Rxe4 {[%clk 0:00:57.8]} 33...
Qxd8 {[%clk 0:00:22.9]} 34. b5 {[%clk 0:00:58.3]} 34... Rd6 {[%clk 0:00:19.5]}
35. Qxa3 {[%clk 0:00:53.1]} 35... Rd1+ {[%clk 0:00:14.9]} 36. Kh2 {[%clk
0:00:51.3]} 36... Rd3 {[%clk 0:00:11.7]} 37. Qb2+ {[%clk 0:00:50.8]} 37... Qf6
{[%clk 0:00:10.3]} 38. Qxf6+ {[%clk 0:00:46.9]} 38... Kxf6 {[%clk 0:00:11.2]}
39. Rc4 {[%clk 0:00:47.6]} 39... Ra3 {[%clk 0:00:08.2]} 40. Rc7 {[%clk
0:00:47.5]} 40... Rxa2 {[%clk 0:00:08.7]} 41. Rxb7 {[%clk 0:00:47.5]} 41... h5
{[%clk 0:00:08.8]} 42. Rc7 {[%clk 0:00:44.2]} 42... Rb2 {[%clk 0:00:09.2]} 43.
Rc5 {[%clk 0:00:42.9]} 43... Ke6 {[%clk 0:00:09.2]} 44. Kh3 {[%clk 0:00:40.8]}
44... Kf6 {[%clk 0:00:08.5]} 45. g3 {[%clk 0:00:39.7]} 45... Ke6 {[%clk
0:00:08.6]} 46. Kh4 {[%clk 0:00:34.9]} 46... Kf6 {[%clk 0:00:08.4]} 47. Rc6+
{[%clk 0:00:32.3]} 47... Kg7 {[%clk 0:00:08.6]} 48. Rb6 {[%clk 0:00:32.5]} 48...
Rh2+ {[%clk 0:00:03.5]} 49. Kg5 {[%clk 0:00:32.9]} 49... Rg2 {[%clk 0:00:04.2]}
50. Kh4 {[%clk 0:00:30.1]} 50... Rh2+ {[%clk 0:00:04.6]} 51. Kg5 {[%clk
0:00:30.5]} 51... Rh3 {[%clk 0:00:05.1]} 52. f5 {[%clk 0:00:27.7]} 52... Rxg3+
{[%clk 0:00:05.5]} 53. Kf4 {[%clk 0:00:28.1]} 53... Rg4+ {[%clk 0:00:06.3]} 54.
Ke5 {[%clk 0:00:27]} 54... Rg5 {[%clk 0:00:02.4]} 55. Rf6 {[%clk 0:00:24.8]}
55... Rg1 {[%clk 0:00:02.1]} 56. Rb6 {[%clk 0:00:22.9]} 56... Re1+ {[%clk
0:00:02]} 57. Kd5 {[%clk 0:00:19.7]} 57... gxf5 {[%clk 0:00:02.4]} 58. Ra6
{[%clk 0:00:18.1]} 58... h4 {[%clk 0:00:02.6]} 59. Ra4 {[%clk 0:00:18.2]} 59...
Rh1 {[%clk 0:00:01.3]} 60. b6 {[%clk 0:00:17.8]} 60... Kg6 {[%clk 0:00:02.2]}
61. Kc6 {[%clk 0:00:18.2]} 61... Rb1 {[%clk 0:00:02.8]} 62. b7 {[%clk
0:00:18.1]} 62... Kg5 {[%clk 0:00:03.7]} 63. Ra5 {[%clk 0:00:17.3]} 63... Rxb7
{[%clk 0:00:04.6]} 64. Kxb7 {[%clk 0:00:17.4]} 64... h3 {[%clk 0:00:05.5]} 65.
Kc6 {[%clk 0:00:16.9]} 65... Kg4 {[%clk 0:00:06.4]} 66. Kd5 {[%clk 0:00:17.4]}
66... h2 {[%clk 0:00:07]} 67. Ra1 {[%clk 0:00:17.6]} 67... Kg3 {[%clk
0:00:07.9]} 68. Ke5 {[%clk 0:00:17.9]} 68... f4 {[%clk 0:00:08.2]} 69. Ke4
{[%clk 0:00:17.9]} 69... f3 {[%clk 0:00:08.8]} 70. Ke3 {[%clk 0:00:18.2]} 70...
f2 {[%clk 0:00:09.2]} 71. Rf1 {[%clk 0:00:18.7]} 71... Kg2 {[%clk 0:00:09.6]}
72. Rxf2+ {[%clk 0:00:19.1]} 72... Kg1 {[%clk 0:00:10]} 73. Ke2 {[%clk
0:00:16.7]} 73... h1=Q {[%clk 0:00:08.5]} 74. Rf1+ {[%clk 0:00:17]} 74... Kg2
{[%clk 0:00:08.9]} 75. Rxh1 {[%clk 0:00:17.3]} 75... Kxh1 {[%clk 0:00:09.8]} 76.
Kf3 {[%clk 0:00:15.6]} 76... Kh2 {[%clk 0:00:10.7]} 77. Kf4 {[%clk 0:00:16]}
77... Kg2 {[%clk 0:00:10.5]} 78. Kf5 {[%clk 0:00:16.9]} 78... Kf3 {[%clk
0:00:11.4]} 79. Kf6 {[%clk 0:00:17.8]} 79... Kf4 {[%clk 0:00:12.1]} 80. Kxf7
{[%clk 0:00:18.7]} 1/2-1/2

[Event "*** Titled Tuesday Blitz"]
[Site "Chess.com"]
[Date "2020.04.28"]
[Round "7"]
[White "talman67"]
[Black "Generalas"]
[Result "0-1"]
[WhiteElo "2557"]
[BlackElo "2399"]
[TimeControl "180+1"]
[EndTime "11:20:02 PDT"]
[Termination "Generalas won by resignation"]

1. e4 {[%clk 0:03:00.9]} 1... e5 {[%clk 0:02:59.5]} 2. Nf3 {[%clk 0:03:00.8]}
2... Nc6 {[%clk 0:02:59.9]} 3. Bb5 {[%clk 0:03:01.3]} 3... a6 {[%clk 0:03:00.1]}
4. Ba4 {[%clk 0:03:01.9]} 4... Nf6 {[%clk 0:03:00.2]} 5. O-O {[%clk 0:03:02.5]}
5... Be7 {[%clk 0:02:59.6]} 6. Re1 {[%clk 0:03:02.9]} 6... b5 {[%clk 0:02:59.8]}
7. Bb3 {[%clk 0:03:03]} 7... O-O {[%clk 0:03:00.4]} 8. c3 {[%clk 0:03:03.6]}
8... d5 {[%clk 0:03:00.4]} 9. exd5 {[%clk 0:03:04.2]} 9... Nxd5 {[%clk
0:03:01.3]} 10. Nxe5 {[%clk 0:03:04.5]} 10... Nxe5 {[%clk 0:03:02.2]} 11. Rxe5
{[%clk 0:03:05.2]} 11... c6 {[%clk 0:03:01.9]} 12. d3 {[%clk 0:03:02.8]} 12...
Bd6 {[%clk 0:03:00]} 13. Re1 {[%clk 0:03:02.9]} 13... Qh4 {[%clk 0:02:57.7]} 14.
g3 {[%clk 0:03:02.7]} 14... Qh3 {[%clk 0:02:56.5]} 15. Qf3 {[%clk 0:03:02.6]}
15... Bg4 {[%clk 0:02:54.3]} 16. Qg2 {[%clk 0:02:49.8]} 16... Qh5 {[%clk
0:02:53.7]} 17. Nd2 {[%clk 0:02:49.6]} 17... Rae8 {[%clk 0:02:52.7]} 18. Ne4
{[%clk 0:02:08.5]} 18... f5 {[%clk 0:02:42.1]} 19. Bd2 {[%clk 0:01:51.3]} 19...
Bf3 {[%clk 0:02:36.2]} 20. Bd1 {[%clk 0:01:46.2]} 20... fxe4 {[%clk 0:02:29]}
21. dxe4 {[%clk 0:01:45.3]} 21... Bxd1 {[%clk 0:02:24.8]} 22. Raxd1 {[%clk
0:01:42.6]} 22... Nf6 {[%clk 0:02:22.4]} 23. f3 {[%clk 0:01:40.9]} 23... Nd7
{[%clk 0:02:03.8]} 24. Be3 {[%clk 0:01:36]} 24... Ne5 {[%clk 0:01:52.5]} 25. Rf1
{[%clk 0:01:24.3]} 25... Nc4 {[%clk 0:01:52.1]} 26. Bc1 {[%clk 0:01:18.2]} 26...
Bc5+ {[%clk 0:01:50]} 27. Kh1 {[%clk 0:01:18.7]} 27... Be3 {[%clk 0:01:45.9]}
28. Bxe3 {[%clk 0:01:19.2]} 28... Nxe3 {[%clk 0:01:45.6]} 29. Qe2 {[%clk
0:01:11.9]} 29... Nxd1 {[%clk 0:01:43.3]} 30. Qxd1 {[%clk 0:01:12.8]} 30... Rd8
{[%clk 0:01:39.4]} 31. Qe2 {[%clk 0:01:12.2]} 31... Qh6 {[%clk 0:01:31.7]} 32.
f4 {[%clk 0:01:11.6]} 32... Qd6 {[%clk 0:01:28]} 33. e5 {[%clk 0:01:09.9]} 33...
Qd2 {[%clk 0:01:25.4]} 34. Qg4 {[%clk 0:01:09.4]} 34... Qd5+ {[%clk 0:00:53.9]}
35. Kg1 {[%clk 0:01:08.8]} 35... Qxa2 {[%clk 0:00:53.2]} 36. f5 {[%clk
0:01:07.8]} 36... Qc4 {[%clk 0:00:50.4]} 37. Qxc4+ {[%clk 0:00:46.5]} 37... bxc4
{[%clk 0:00:51.3]} 38. e6 {[%clk 0:00:47.4]} 38... Rd5 {[%clk 0:00:46.3]} 39. g4
{[%clk 0:00:46.9]} 39... h5 {[%clk 0:00:40.5]} 40. h3 {[%clk 0:00:46.9]} 40...
Rd3 {[%clk 0:00:38.5]} 41. Kg2 {[%clk 0:00:40.4]} 41... Re8 {[%clk 0:00:34.5]}
42. Rf4 {[%clk 0:00:38]} 42... hxg4 {[%clk 0:00:30.3]} 43. hxg4 {[%clk
0:00:38.9]} 43... Kf8 {[%clk 0:00:30.5]} 44. Rxc4 {[%clk 0:00:38.8]} 44... Rc8
{[%clk 0:00:27.6]} 45. Rb4 {[%clk 0:00:36.7]} 45... Rc7 {[%clk 0:00:25]} 46.
Rb8+ {[%clk 0:00:32.6]} 46... Ke7 {[%clk 0:00:25.2]} 47. Rg8 {[%clk 0:00:33.5]}
47... Kf6 {[%clk 0:00:25.2]} 48. Rf8+ {[%clk 0:00:32.6]} 48... Kg5 {[%clk
0:00:24.7]} 49. Kf2 {[%clk 0:00:25.7]} 49... Kxg4 {[%clk 0:00:22.6]} 50. Ke2
{[%clk 0:00:26.2]} 50... Rd5 {[%clk 0:00:20.3]} 51. f6 {[%clk 0:00:19.7]} 51...
Re5+ {[%clk 0:00:18.4]} 52. Kd3 {[%clk 0:00:18.3]} 52... Rxe6 {[%clk 0:00:18.7]}
53. f7 {[%clk 0:00:16.9]} 53... Rf6 {[%clk 0:00:18.1]} 54. Ra8 {[%clk
0:00:15.3]} 54... Rcxf7 {[%clk 0:00:18]} 55. Rxa6 {[%clk 0:00:16.2]} 55... Rd7+
{[%clk 0:00:17.3]} 56. Kc4 {[%clk 0:00:17.1]} 56... Rb7 {[%clk 0:00:17.1]} 57.
b4 {[%clk 0:00:16.7]} 57... Kf5 {[%clk 0:00:16]} 58. Kc5 {[%clk 0:00:14.6]}
58... Rb5+ {[%clk 0:00:16]} 59. Kc4 {[%clk 0:00:14.6]} 59... Re5 {[%clk
0:00:16.1]} 60. Ra7 {[%clk 0:00:12.5]} 60... g5 {[%clk 0:00:15.8]} 61. Rg7
{[%clk 0:00:11.2]} 61... g4 {[%clk 0:00:15.5]} 62. Kb3 {[%clk 0:00:10.7]} 62...
Kf4 {[%clk 0:00:15.5]} 63. c4 {[%clk 0:00:10.6]} 63... Rg5 {[%clk 0:00:15.1]}
64. Re7 {[%clk 0:00:06.7]} 64... g3 {[%clk 0:00:14.9]} 65. Re1 {[%clk
0:00:07.3]} 65... g2 {[%clk 0:00:15.2]} 66. Rg1 {[%clk 0:00:08.2]} 66... Ke3
{[%clk 0:00:15]} 67. Ka4 {[%clk 0:00:09.1]} 67... Kd4 {[%clk 0:00:14.8]} 68. b5
{[%clk 0:00:08.7]} 68... cxb5+ {[%clk 0:00:12.1]} 69. cxb5 {[%clk 0:00:09.6]}
69... Rb6 {[%clk 0:00:11.8]} 70. Ka3 {[%clk 0:00:07.5]} 70... Rbxb5 {[%clk
0:00:11.6]} 71. Rd1+ {[%clk 0:00:07.5]} 71... Ke3 {[%clk 0:00:10.8]} 72. Rg1
{[%clk 0:00:08]} 72... Kf2 {[%clk 0:00:10.9]} 0-1

[Event "*** Titled Tuesday Blitz"]
[Site "Chess.com"]
[Date "2020.04.28"]
[Round "7"]
[White "Hippotaner"]
[Black "MisiekZielony"]
[Result "0-1"]
[WhiteElo "2236"]
[BlackElo "2125"]
[TimeControl "180+1"]
[EndTime "11:20:03 PDT"]
[Termination "MisiekZielony won on time"]

1. e4 {[%clk 0:03:00.9]} 1... Nf6 {[%clk 0:02:59.8]} 2. d3 {[%clk 0:02:56.4]}
2... e5 {[%clk 0:02:59.2]} 3. g3 {[%clk 0:02:50.8]} 3... d5 {[%clk 0:02:58.8]}
4. Nd2 {[%clk 0:02:50.4]} 4... c6 {[%clk 0:02:58.7]} 5. Bg2 {[%clk 0:02:50.4]}
5... g6 {[%clk 0:02:58.4]} 6. Ngf3 {[%clk 0:02:50.8]} 6... Nbd7 {[%clk
0:02:57.1]} 7. b3 {[%clk 0:02:50.7]} 7... Bg7 {[%clk 0:02:56.8]} 8. Bb2 {[%clk
0:02:51.3]} 8... Qc7 {[%clk 0:02:40]} 9. O-O {[%clk 0:02:50.8]} 9... O-O {[%clk
0:02:39.6]} 10. exd5 {[%clk 0:02:50.8]} 10... cxd5 {[%clk 0:02:33.3]} 11. c4
{[%clk 0:02:50.9]} 11... d4 {[%clk 0:02:25.2]} 12. b4 {[%clk 0:02:49.9]} 12...
Re8 {[%clk 0:02:16.1]} 13. Re1 {[%clk 0:02:48.9]} 13... Rb8 {[%clk 0:02:11.2]}
14. Ng5 {[%clk 0:02:38.5]} 14... h6 {[%clk 0:01:52]} 15. Nge4 {[%clk 0:02:38.1]}
15... b6 {[%clk 0:01:41.3]} 16. Qc2 {[%clk 0:02:15.3]} 16... Nxe4 {[%clk
0:01:35]} 17. Bxe4 {[%clk 0:02:01]} 17... Nf6 {[%clk 0:01:29.7]} 18. Bg2 {[%clk
0:01:58.8]} 18... Bf5 {[%clk 0:01:25.5]} 19. Ne4 {[%clk 0:01:37.4]} 19... Nxe4
{[%clk 0:01:00.9]} 20. Bxe4 {[%clk 0:01:11.3]} 20... Bxe4 {[%clk 0:00:51]} 21.
Rxe4 {[%clk 0:01:12.2]} 21... Re6 {[%clk 0:00:50.6]} 22. Rae1 {[%clk 0:01:11.2]}
22... Rbe8 {[%clk 0:00:50.1]} 23. a4 {[%clk 0:01:08.7]} 23... Qc6 {[%clk
0:00:45.6]} 24. R4e2 {[%clk 0:01:07.4]} 24... e4 {[%clk 0:00:30.1]} 25. dxe4
{[%clk 0:01:01.7]} 25... d3 {[%clk 0:00:30]} 26. Qxd3 {[%clk 0:01:01.8]} 26...
Bxb2 {[%clk 0:00:28.6]} 27. Rxb2 {[%clk 0:01:01.9]} 27... Rxe4 {[%clk
0:00:28.5]} 28. Rxe4 {[%clk 0:01:01.9]} 28... Rxe4 {[%clk 0:00:27.1]} 29. Qd5
{[%clk 0:00:19]} 29... Qxc4 {[%clk 0:00:22.2]} 30. Qxc4 {[%clk 0:00:18.8]} 30...
Rxc4 {[%clk 0:00:22]} 31. Kf1 {[%clk 0:00:19.5]} 31... Rc1+ {[%clk 0:00:15.6]}
32. Ke2 {[%clk 0:00:19.3]} 32... Ra1 {[%clk 0:00:15.9]} 33. a5 {[%clk
0:00:16.6]} 33... bxa5 {[%clk 0:00:15.2]} 34. b5 {[%clk 0:00:16.4]} 34... Ra4
{[%clk 0:00:10.7]} 35. b6 {[%clk 0:00:16.4]} 35... axb6 {[%clk 0:00:10.7]} 36.
Rxb6 {[%clk 0:00:16.6]} 36... Rd4 {[%clk 0:00:08.4]} 37. h4 {[%clk 0:00:15.8]}
37... h5 {[%clk 0:00:07.4]} 38. Ra6 {[%clk 0:00:15.8]} 38... Rd5 {[%clk
0:00:06.4]} 39. Ke3 {[%clk 0:00:15.9]} 39... Kf8 {[%clk 0:00:06.2]} 40. Ke4
{[%clk 0:00:15.9]} 40... Rf5 {[%clk 0:00:06.3]} 41. Ra8+ {[%clk 0:00:15.2]}
41... Ke7 {[%clk 0:00:06.5]} 42. Ra7+ {[%clk 0:00:15.6]} 42... Kd6 {[%clk
0:00:06.7]} 43. Ra6+ {[%clk 0:00:15.1]} 43... Kc7 {[%clk 0:00:06.4]} 44. f4
{[%clk 0:00:15.1]} 44... Kb7 {[%clk 0:00:04.7]} 45. Rd6 {[%clk 0:00:15.2]} 45...
a4 {[%clk 0:00:03.6]} 46. Rd2 {[%clk 0:00:12.1]} 46... Kb6 {[%clk 0:00:03.1]}
47. Rb2+ {[%clk 0:00:11.4]} 47... Rb5 {[%clk 0:00:02.8]} 48. Ra2 {[%clk
0:00:09.5]} 48... Ka5 {[%clk 0:00:03.3]} 49. Kd4 {[%clk 0:00:09]} 49... Rb4+
{[%clk 0:00:02.8]} 50. Ke3 {[%clk 0:00:03.6]} 50... Rb3+ {[%clk 0:00:03.1]} 51.
Kf2 {[%clk 0:00:03.1]} 51... Kb4 {[%clk 0:00:03.7]} 52. Rd2 {[%clk 0:00:02.4]}
52... a3 {[%clk 0:00:04]} 53. Rd8 {[%clk 0:00:02.6]} 53... Kc3 {[%clk
0:00:03.4]} 54. Rc8+ {[%clk 0:00:02.5]} 54... Kb2 {[%clk 0:00:03.6]} 55. Ra8
{[%clk 0:00:01.9]} 55... a2 {[%clk 0:00:03.9]} 56. f5 {[%clk 0:00:02.3]} 56...
a1=Q {[%clk 0:00:04.2]} 57. Rxa1 {[%clk 0:00:01.8]} 57... Kxa1 {[%clk
0:00:04.5]} 58. fxg6 {[%clk 0:00:02.7]} 58... fxg6 {[%clk 0:00:04.5]} 59. Kg2
{[%clk 0:00:02.6]} 59... Kb2 {[%clk 0:00:04.9]} 60. Kf2 {[%clk 0:00:03]} 60...
Kc2 {[%clk 0:00:05.3]} 61. Kg2 {[%clk 0:00:03.4]} 61... Kd2 {[%clk 0:00:05.7]}
62. Kf2 {[%clk 0:00:03.2]} 62... Rd3 {[%clk 0:00:04.9]} 63. Kg2 {[%clk 0:00:03]}
63... Ke2 {[%clk 0:00:05.3]} 64. Kh2 {[%clk 0:00:02.3]} 64... Kf3 {[%clk
0:00:05.7]} 0-1

[Event "*** Titled Tuesday Blitz"]
[Site "Chess.com"]
[Date "2020.04.28"]
[Round "7"]
[White "benko_008"]
[Black "Alexa797"]
[Result "1-0"]
[WhiteElo "2504"]
[BlackElo "2332"]
[TimeControl "180+1"]
[EndTime "11:20:07 PDT"]
[Termination "benko_008 won by resignation"]

1. Nf3 {[%clk 0:03:00.9]} 1... c5 {[%clk 0:02:56.8]} 2. c4 {[%clk 0:03:00.8]}
2... Nc6 {[%clk 0:02:56.5]} 3. Nc3 {[%clk 0:03:00.7]} 3... g6 {[%clk 0:02:55.3]}
4. e3 {[%clk 0:02:56.3]} 4... Bg7 {[%clk 0:02:55.1]} 5. d4 {[%clk 0:02:53.6]}
5... cxd4 {[%clk 0:02:54.1]} 6. exd4 {[%clk 0:02:54.5]} 6... Nf6 {[%clk
0:02:52]} 7. Be2 {[%clk 0:02:50.6]} 7... d5 {[%clk 0:02:50]} 8. O-O {[%clk
0:02:49.4]} 8... O-O {[%clk 0:02:49.7]} 9. cxd5 {[%clk 0:02:43.4]} 9... Nxd5
{[%clk 0:02:49.4]} 10. Bg5 {[%clk 0:02:43.6]} 10... Bg4 {[%clk 0:02:48.1]} 11.
h3 {[%clk 0:02:32.4]} 11... Be6 {[%clk 0:02:33.7]} 12. Ne4 {[%clk 0:02:08.2]}
12... h6 {[%clk 0:02:28.8]} 13. Bc1 {[%clk 0:01:51.7]} 13... b6 {[%clk
0:02:11.8]} 14. a3 {[%clk 0:01:46.3]} 14... a5 {[%clk 0:02:06.2]} 15. Re1 {[%clk
0:01:40.1]} 15... Qc7 {[%clk 0:01:54]} 16. Bf1 {[%clk 0:01:39.3]} 16... Rfd8
{[%clk 0:01:53.5]} 17. Qa4 {[%clk 0:01:36.2]} 17... Rac8 {[%clk 0:01:47.9]} 18.
Ba6 {[%clk 0:01:34.5]} 18... Ra8 {[%clk 0:01:43.6]} 19. Bf1 {[%clk 0:01:30.6]}
19... Bd7 {[%clk 0:01:25.3]} 20. Qb3 {[%clk 0:01:27]} 20... Be8 {[%clk
0:01:12.3]} 21. Bc4 {[%clk 0:01:18.2]} 21... a4 {[%clk 0:01:07.2]} 22. Qa2
{[%clk 0:01:17.3]} 22... Nf4 {[%clk 0:01:07.2]} 23. Be3 {[%clk 0:01:13.5]} 23...
Na5 {[%clk 0:00:57.8]} 24. Rac1 {[%clk 0:01:00.8]} 24... Nxc4 {[%clk 0:00:55.4]}
25. Rxc4 {[%clk 0:01:01.7]} 25... Qb8 {[%clk 0:00:55.1]} 26. Ne5 {[%clk
0:00:55.3]} 26... Nd5 {[%clk 0:00:49.2]} 27. Nc6 {[%clk 0:00:52.3]} 27... Bxc6
{[%clk 0:00:48.1]} 28. Rxc6 {[%clk 0:00:53.2]} 28... Qb7 {[%clk 0:00:38.7]} 29.
Rec1 {[%clk 0:00:51.4]} 29... Nxe3 {[%clk 0:00:27.4]} 30. fxe3 {[%clk
0:00:52.3]} 30... e6 {[%clk 0:00:28]} 31. Qc4 {[%clk 0:00:50.2]} 31... b5 {[%clk
0:00:26.3]} 32. Qc3 {[%clk 0:00:47.6]} 32... Ra6 {[%clk 0:00:16.8]} 33. Rxa6
{[%clk 0:00:42.7]} 33... Qxa6 {[%clk 0:00:16.2]} 34. Qc7 {[%clk 0:00:42.5]}
34... Rf8 {[%clk 0:00:15.9]} 35. Rc6 {[%clk 0:00:40.3]} 35... Qa8 {[%clk
0:00:14.8]} 36. Nd6 {[%clk 0:00:39.3]} 36... Qd8 {[%clk 0:00:12.9]} 37. Nxb5
{[%clk 0:00:34.6]} 37... Qg5 {[%clk 0:00:11]} 38. Qb6 {[%clk 0:00:23.1]} 38...
Qxe3+ {[%clk 0:00:09.8]} 39. Kh1 {[%clk 0:00:21.8]} 39... h5 {[%clk 0:00:05.3]}
40. Rc2 {[%clk 0:00:16.1]} 40... Qe1+ {[%clk 0:00:03.7]} 41. Kh2 {[%clk
0:00:15.3]} 41... Bh6 {[%clk 0:00:04.4]} 42. Qd6 {[%clk 0:00:11.4]} 42... Qe4
{[%clk 0:00:04.5]} 43. Rf2 {[%clk 0:00:09.9]} 43... h4 {[%clk 0:00:03.5]} 44.
Nc3 {[%clk 0:00:09.6]} 44... Qe3 {[%clk 0:00:03.3]} 45. Rf3 {[%clk 0:00:08.9]}
45... Qd2 {[%clk 0:00:02.8]} 46. Qe5 {[%clk 0:00:08.4]} 46... Bg7 {[%clk
0:00:02.7]} 47. Qf4 {[%clk 0:00:07.1]} 47... Qxd4 {[%clk 0:00:02.2]} 48. Ne4
{[%clk 0:00:07]} 48... Qxb2 {[%clk 0:00:01.8]} 49. Qxh4 {[%clk 0:00:06.8]} 49...
Be5+ {[%clk 0:00:01.9]} 50. Ng3 {[%clk 0:00:06.8]} 50... Kg7 {[%clk 0:00:01.8]}
51. Qe4 {[%clk 0:00:06]} 51... Qd4 {[%clk 0:00:01.8]} 52. Qe2 {[%clk 0:00:05.4]}
52... Qd6 {[%clk 0:00:01.5]} 53. Re3 {[%clk 0:00:05]} 53... Rb8 {[%clk
0:00:02.3]} 54. Rxe5 {[%clk 0:00:04.6]} 54... Rb2 {[%clk 0:00:03.2]} 55. Qe3
{[%clk 0:00:04.4]} 55... Rb3 {[%clk 0:00:03.3]} 56. Qf4 {[%clk 0:00:03.8]} 56...
f6 {[%clk 0:00:04.2]} 57. Re4 {[%clk 0:00:03]} 57... Qxf4 {[%clk 0:00:04.6]} 58.
Rxf4 {[%clk 0:00:03.9]} 58... Rxa3 {[%clk 0:00:05.5]} 59. Rb4 {[%clk 0:00:04.4]}
59... e5 {[%clk 0:00:06.1]} 60. Rb7+ {[%clk 0:00:05.3]} 60... Kh6 {[%clk
0:00:05.8]} 61. Rb6 {[%clk 0:00:06.2]} 61... Rb3 {[%clk 0:00:06.4]} 62. Rxf6
{[%clk 0:00:04.3]} 62... a3 {[%clk 0:00:06.7]} 63. Ra6 {[%clk 0:00:05.2]} 63...
a2 {[%clk 0:00:07.4]} 64. Rxa2 {[%clk 0:00:05.1]} 64... Kg5 {[%clk 0:00:08.3]}
65. Ra5 {[%clk 0:00:05.2]} 65... Kf4 {[%clk 0:00:09.2]} 66. Ne2+ {[%clk
0:00:04.6]} 66... Ke3 {[%clk 0:00:09.4]} 67. Ng3 {[%clk 0:00:05]} 67... e4
{[%clk 0:00:10.3]} 68. Re5 {[%clk 0:00:04.8]} 68... Rb4 {[%clk 0:00:10.9]} 69.
Rxe4+ {[%clk 0:00:05.3]} 69... Rxe4 {[%clk 0:00:10.5]} 70. Nxe4 {[%clk
0:00:06.2]} 70... Kxe4 {[%clk 0:00:11.4]} 71. Kg3 {[%clk 0:00:07]} 71... Kf5
{[%clk 0:00:12.1]} 72. Kf3 {[%clk 0:00:07.2]} 72... g5 {[%clk 0:00:12.4]} 73.
Kg3 {[%clk 0:00:07.4]} 73... Ke5 {[%clk 0:00:12.1]} 74. Kg4 {[%clk 0:00:07.4]}
74... Kf6 {[%clk 0:00:12.7]} 75. Kh5 {[%clk 0:00:06.9]} 75... Kf5 {[%clk
0:00:13.2]} 76. g4+ {[%clk 0:00:06.8]} 76... Kf4 {[%clk 0:00:13.3]} 77. Kg6
{[%clk 0:00:07.2]} 77... Kg3 {[%clk 0:00:13.8]} 78. Kxg5 {[%clk 0:00:08.1]}
78... Kxh3 {[%clk 0:00:14.7]} 79. Kf5 {[%clk 0:00:08.6]} 1-0